[Event "German-ch Blitz Women 2022"]
[Site "Magdeburg"]
[Date "2022.08.13"]
[Round "16.8"]
[White "Stangl, Anita"]
[Black "Melamed, Tatjana"]
[Result "0-1"]
[ECO "B08"]
[WhiteElo "2023"]
[BlackElo "2380"]
[Annotator "TA"]
[PlyCount "88"]
[EventDate "2022.08.10"]
[EventType "tourn"]
[EventCountry "GER"]
[SourceTitle "playchess.com"]
[Source "ChessBase"]
[SourceQuality "1"]
[TimeControl "180+2"]

{[%evp 14,87,69,7,28,14,16,17,9,7,0,0,0,-68,-77,-99,-53,-177,-177,-177,-177,-175,-175,-174,-166,-202,-193,-277,-282,-290,-277,-290,-292,-298,-296,-343,-341,-343,-339,-483,-482,-592,-587,-616,-606,-573,-497,-502,-287,-465,-470,-458,-458,-464,-413,-636,-622,-579,-365,-471,-470,-652,-655,-575,-483,-612,-470,-663,-683,-657,-303,-284,-261,-398,-403,-29999]} 1. e4 {[%emt 0:00:02]} Nf6 {[%emt 0:00:02]} 2. Nc3 {[%emt 0:00:01]} d6 {[%emt 0:00:03]} 3. d4 {[%emt 0:00:03]} g6 {[%emt 0:00:01]} 4. Nf3 {[%emt 0:00:01]} Bg7 {[%emt 0:00:02]} 5. Bg5 {[%emt 0:00:06]} O-O {[%emt 0:00:01]} 6. Qd2 {[%emt 0:00:01]} Nc6 {[%emt 0:00:09]} 7. O-O-O {[%emt 0:00:09]} Bg4 {[%emt 0:00:01]} 8. Bh6 {[%emt 0:00:07]} (8. Qe3 $14) 8... Bxf3 {[%emt 0:00:12] B08: Pirc Defence: Classical System.} 9. gxf3 {[%emt 0:00:02]} e5 {[%emt 0:00:01]} 10. Bxg7 {[%emt 0:00:16]} Kxg7 {[%emt 0:00:02] The position is equal.} 11. d5 {[%emt 0:00:11]} Nd4 {[%emt 0:00:01]} 12. f4 $1 {[%emt 0:00:01]} Nh5 {[%emt 0:00:05] Pair of Knights!} 13. f5 {[%emt 0:00:06] [#]} ({Better is} 13. fxe5 $11 dxe5 14. Qe3) 13... Qh4 $146 {[%emt 0:00:05][%mdl 2048] Black is on the roll.} (13... gxf5 14. Rg1+ Kh8 15. Qh6 $14) ({Predecessor:} 13... Nf4 14. Ne2 Ndxe2+ 15. Bxe2 Qg5 16. Kb1 Qh4 17. f3 Qf2 18. Rde1 gxf5 19. exf5 Kf6 {1-0 (53) Gutierrez Nevado,J-Garcia Gonzalez,F Oviedo 2004}) 14. Bd3 {[%emt 0:00:18]} Qf4 {[%emt 0:00:03] Black is more active.} (14... Nf4 $17) 15. Nb5 {[%emt 0:00:21]} ({White should play} 15. Qe3 $15) 15... Nxb5 $19 {[%emt 0:00:14]} (15... gxf5 16. Nxd4 exd4 17. exf5 $11) 16. Qxf4 {[%emt 0:00:01]} Nxf4 {[%emt 0:00:03]} 17. Bxb5 {[%emt 0:00:01]} gxf5 {[%emt 0:00:06]} 18. exf5 {[%emt 0:00:03]} Kf6 {[%emt 0:00:01]} 19. h4 {[%emt 0:00:17]} Rg8 {[%emt 0:00:02]} (19... Kxf5 20. Ba4) 20. Rdg1 {[%emt 0:00:17]} (20. Bd3 $142) 20... Nxd5 {[%emt 0:00:08]} 21. Kd2 {[%emt 0:00:10]} Nf4 {[%emt 0:00:04]} (21... Kxf5 22. Bd3+ e4 23. Bc4 $19) 22. Ke3 {[%emt 0:00:05]} c6 {[%emt 0:00:03]} (22... Kxf5 $2 23. Bd3+ Nxd3 24. cxd3 $19) 23. Bf1 {[%emt 0:00:10]} d5 {[%emt 0:00:01]} ({Not} 23... Kxf5 $2 24. Bd3+ Nxd3 25. cxd3 $19) 24. c3 {[%emt 0:00:08]} Kxf5 {[%emt 0:00:08]} 25. b4 {[%emt 0:00:07]} Rg6 {[%emt 0:00:08]} 26. Rxg6 {[%emt 0:00:09]} (26. h5 $142 Rgg8 27. h6) 26... hxg6 {[%emt 0:00:01][%mdl 4096] Endgame KRB-KRN} (26... Kxg6 $2 {is the wrong capture.} 27. Rg1+ Kf6 28. a3 $19) (26... fxg6 $2 {loses.} 27. a3 $19) 27. Rg1 {[%emt 0:00:01]} Rh8 {[%emt 0:00:08]} 28. Rg5+ {[%emt 0:00:08]} Kf6 {[%emt 0:00:01]} 29. Rg4 {[%emt 0:00:04]} Ne6 {[%emt 0:00:11]} 30. b5 {[%emt 0:00:05]} Rh5 {[%emt 0:00:04]} 31. bxc6 $2 {[%emt 0:00:02] [#]} (31. Ra4 {was necessary.}) 31... bxc6 {[%emt 0:00:01]} 32. Ra4 {[%emt 0:00:01]} c5 {[%emt 0:00:15]} 33. Rxa7 {[%emt 0:00:02]} d4+ {[%emt 0:00:01]} 34. Kd3 {[%emt 0:00:04]} (34. cxd4 $142 cxd4+ 35. Kf3) 34... Rxh4 {[%emt 0:00:02]} 35. cxd4 {[%emt 0:00:06]} Rxd4+ {[%emt 0:00:07]} 36. Kc3 {[%emt 0:00:01]} Rf4 {[%emt 0:00:02]} 37. a4 {[%emt 0:00:04]} Rxf2 {[%emt 0:00:02]} 38. Bc4 {[%emt 0:00:01]} Rf3+ {[%emt 0:00:17]} 39. Kd2 {[%emt 0:00:01]} Ra3 {[%emt 0:00:02]} 40. a5 {[%emt 0:00:01]} (40. Kc2 $142 g5 41. Kb2) 40... e4 {[%emt 0:00:05][%cal Be5e4,Be4e3][%mdl 32]} 41. a6 {[%emt 0:00:01]} Nd4 {[%emt 0:00:04]} (41... e3+ $142 42. Ke1 Nd4 43. Rxf7+ Kg5) 42. Rxf7+ {[%emt 0:00:03]} Ke5 {[%emt 0:00:01] White must now prevent ...e3+.} 43. a7 {[%emt 0:00:02]} (43. Re7+ $142 Kf4 44. a7) 43... e3+ {[%emt 0:00:03]} 44. Kd1 {[%emt 0:00:07] [#]} (44. Kc1 $19 Nc6 45. Rc7) 44... Ra1# {[%emt 0:00:03] White got outplayed after the opening.  Weighted Error Value: White=0.53/Black=0.27 (precise)} 0-1

[Event "German-ch Blitz Women 2022"]
[Site "Magdeburg"]
[Date "2022.08.13"]
[Round "16.9"]
[White "Falke, Ornella"]
[Black "Stärk, Elisa"]
[Result "1/2-1/2"]
[ECO "E81"]
[WhiteElo "1912"]
[BlackElo "1950"]
[Annotator "TA"]
[PlyCount "80"]
[EventDate "2022.08.10"]
[EventType "tourn"]
[EventCountry "GER"]
[SourceTitle "playchess.com"]
[Source "ChessBase"]
[SourceQuality "1"]
[TimeControl "180+2"]

{[%evp 13,80,51,66,41,42,42,47,-3,41,29,34,10,8,13,13,4,52,32,43,39,64,66,63,71,71,75,54,65,75,69,75,59,96,11,13,14,39,44,42,32,43,40,43,35,35,0,78,0,18,18,41,56,131,78,77,0,120,0,0,0,122,0,0,0,118,0,0,0,129]} 1. d4 {[%emt 0:00:01]} Nf6 {[%emt 0:00:00]} 2. c4 {[%emt 0:00:01]} g6 {[%emt 0:00:01]} 3. f3 {[%emt 0:00:02]} Bg7 {[%emt 0:00:01]} 4. e4 {[%emt 0:00:03]} d6 {[%emt 0:00:00]} 5. Nc3 {[%emt 0:00:02]} O-O {[%emt 0:00:01]} 6. Be3 {[%emt 0:00:02]} a6 {[%emt 0:00:01]} 7. Qd2 {[%emt 0:00:02]} b6 {[%emt 0:00:04]} 8. Nge2 {[%emt 0:00:05] E82: King's Indian: Sämisch: 6...b6.} c5 {[%emt 0:00:02]} 9. d5 {[%emt 0:00:04]} Nbd7 {[%emt 0:00:04]} 10. h4 {[%emt 0:00:11] [#]} (10. Ng3 $14) 10... h5 $146 {[%emt 0:00:01]} (10... Nh5 {keeps more tension.} 11. Kf2 Ne5 12. Nf4 f5) ({Predecessor:} 10... Qc7 11. h5 Nxh5 12. g4 Ne5 13. Ng1 Ng3 14. Rxh7 Nxf1 15. Rxg7+ Kxg7 16. Bh6+ Kh7 17. Kxf1 {½-½ (40) Baerschneider,A-Golombeck,K ICCF corr 1990}) 11. Nf4 {[%emt 0:00:06]} Ne5 {[%emt 0:00:07]} 12. Be2 {[%emt 0:00:04]} b5 {[%emt 0:00:18]} 13. cxb5 {[%emt 0:00:06]} Qa5 {[%emt 0:00:02]} 14. O-O {[%emt 0:00:30]} axb5 {[%emt 0:00:16]} (14... Nfd7 $11 {deserves consideration.}) 15. Nxb5 $14 {[%emt 0:00:05]} Qxd2 {[%emt 0:00:12]} 16. Bxd2 {[%emt 0:00:01]} Bd7 {[%emt 0:00:04]} 17. Rfc1 {[%emt 0:00:19]} Rfb8 {[%emt 0:00:11]} 18. a4 {[%emt 0:00:04]} c4 {[%emt 0:00:06]} 19. Bc3 {[%emt 0:00:20]} Bxb5 {[%emt 0:00:09]} 20. axb5 {[%emt 0:00:01]} Rxa1 {[%emt 0:00:05]} 21. Rxa1 {[%emt 0:00:00]} Nfd7 $1 {[%emt 0:00:08]} 22. Ra7 {[%emt 0:00:05][%cal Oe2c4]} Bf6 {[%emt 0:00:13] [#]} 23. Ra4 {[%emt 0:00:12] White is more active.} ({Better is} 23. Bxc4 $1 $16 {And now Bf1 would win.} Nxc4 24. Rxd7) 23... Rxb5 {[%emt 0:00:06]} (23... Bxh4 {feels hotter.} 24. Nh3 Rxb5 25. Ra7 Nf8) 24. Bxc4 {[%emt 0:00:08]} Nxc4 {[%emt 0:00:14]} (24... Rb8 $5 {[%cal Rd7c5]} 25. Be2 Bxh4 $14) 25. Rxc4 {[%emt 0:00:01]} Bxc3 {[%emt 0:00:07]} 26. bxc3 $11 {[%mdl 4096] Endgame Black must now prevent Rc8+. KRN-KRN} Ne5 {[%emt 0:00:04]} 27. Rc7 {[%emt 0:00:08]} Kf8 {[%emt 0:00:06]} 28. Rc8+ {[%emt 0:00:01]} Kg7 {[%emt 0:00:01]} 29. Rc7 {[%emt 0:00:07]} Kf6 {[%emt 0:00:02]} (29... Kf8 $1 $11 {keeps the balance.}) 30. Ne2 {[%emt 0:00:03]} (30. Nh3 $16) 30... Rb1+ {[%emt 0:00:03]} 31. Kf2 {[%emt 0:00:02]} Nd3+ {[%emt 0:00:03]} 32. Ke3 {[%emt 0:00:01]} Ne1 {[%emt 0:00:13] [#]} (32... Ne5 $14) 33. Nf4 {[%emt 0:00:04]} (33. g3 $142 $1) 33... Rb2 $16 {[%emt 0:00:10]} 34. g4 {[%emt 0:00:19]} (34. g3 $16) 34... Nc2+ {[%emt 0:00:25]} (34... Rh2 $1 $11) 35. Kd3 {[%emt 0:00:03]} Ne1+ {[%emt 0:00:03]} 36. Ke3 {[%emt 0:00:16]} Nc2+ {[%emt 0:00:02]} 37. Kd3 {[%emt 0:00:12] Hoping for Ng2.} Ne1+ {[%emt 0:00:02]} 38. Ke3 {[%emt 0:00:06] Strongly threatening g5+.} Nc2+ {[%emt 0:00:01]} 39. Kd3 {[%emt 0:00:12]} Ne1+ $1 {[%emt 0:00:01]} 40. Ke3 {[%emt 0:00:03]} Nc2+ {[%emt 0:00:02] Weighted Error Value: White=0.35/Black=0.14 (very precise)} 1/2-1/2

[Event "German-ch Blitz Women 2022"]
[Site "Magdeburg"]
[Date "2022.08.13"]
[Round "16.10"]
[White "Kosovska, Olena"]
[Black "Zschischang, Marine"]
[Result "1-0"]
[ECO "C10"]
[WhiteElo "1831"]
[BlackElo "2083"]
[Annotator "NA RC"]
[PlyCount "99"]
[EventDate "2022.08.10"]
[EventType "tourn"]
[EventCountry "GER"]
[SourceTitle "playchess.com"]
[Source "ChessBase"]
[SourceQuality "1"]
[TimeControl "180+2"]

1. e4 e6 2. d4 d5 3. Nd2 {[%emt 0:00:04]} dxe4 {[%emt 0:00:01]} 4. Nxe4 {[%emt 0:00:02]} Nd7 {[%emt 0:00:01]} 5. Nf3 {[%emt 0:00:03]} Ngf6 {[%emt 0:00:01]} 6. Ng3 {[%emt 0:00:06]} c5 {[%emt 0:00:01]} 7. Be3 {[%emt 0:00:08]} Qc7 {[%emt 0:00:05]} 8. Be2 {[%emt 0:00:07]} b6 {[%emt 0:00:12]} 9. O-O {[%emt 0:00:03]} Bb7 {[%emt 0:00:05]} 10. c3 {[%emt 0:00:12]} Bd6 {[%emt 0:00:19]} 11. Qc2 {[%emt 0:00:27]} O-O {[%emt 0:00:06]} 12. Ng5 {[%emt 0:00:12]} h6 {[%emt 0:00:13]} 13. Nf3 {[%emt 0:00:22]} Rac8 {[%emt 0:00:12]} 14. Rad1 {[%emt 0:00:03]} c4 {[%emt 0:00:15]} 15. Qd2 {[%emt 0:00:09]} Rfd8 {[%emt 0:00:25]} 16. Rfe1 {[%emt 0:00:02]} Ng4 {[%emt 0:00:15]} 17. Nh4 {[%emt 0:00:44]} Nxe3 {[%emt 0:00:34]} 18. fxe3 {[%emt 0:00:03]} Bxg3 {[%emt 0:00:03]} 19. hxg3 {[%emt 0:00:08]} Qxg3 {[%emt 0:00:01]} 20. Bf3 {[%emt 0:00:01]} Bxf3 {[%emt 0:00:10]} 21. Nxf3 {[%emt 0:00:01]} Nf6 {[%emt 0:00:04]} 22. e4 {[%emt 0:00:02]} Ng4 {[%emt 0:00:11]} 23. Qe2 {[%emt 0:00:14]} h5 {[%emt 0:00:10]} 24. d5 {[%emt 0:00:06]} exd5 {[%emt 0:00:05]} 25. Rxd5 {[%emt 0:00:05]} h4 {[%emt 0:00:07]} 26. Red1 {[%emt 0:00:01]} Rxd5 {[%emt 0:00:03]} 27. Rxd5 {[%emt 0:00:02]} h3 {[%emt 0:00:02]} 28. Rd2 {[%emt 0:00:09]} hxg2 {[%emt 0:00:03]} 29. e5 {[%emt 0:00:05]} Re8 {[%emt 0:00:02]} 30. Qe1 {[%emt 0:00:05]} Qxe1+ {[%emt 0:00:02]} 31. Nxe1 {[%emt 0:00:01]} Rxe5 {[%emt 0:00:01]} 32. Nxg2 {[%emt 0:00:01]} Re7 {[%emt 0:00:05]} 33. Nf4 {[%emt 0:00:02]} Nf6 {[%emt 0:00:06]} 34. Kg2 {[%emt 0:00:02]} g5 {[%emt 0:00:02]} 35. Ne2 {[%emt 0:00:03]} Kg7 {[%emt 0:00:01]} 36. Nd4 {[%emt 0:00:01]} Kg6 {[%emt 0:00:03]} 37. Rf2 {[%emt 0:00:02]} Ng4 {[%emt 0:00:02]} 38. Rd2 {[%emt 0:00:01]} f5 {[%emt 0:00:02]} 39. b3 {[%emt 0:00:04]} cxb3 {[%emt 0:00:02]} 40. axb3 {[%emt 0:00:01]} Ne3+ {[%emt 0:00:00]} 41. Kf3 {[%emt 0:00:01]} g4+ {[%emt 0:00:03]} 42. Kf4 {[%emt 0:00:01]} Nd5+ {[%emt 0:00:01]} 43. Kg3 {[%emt 0:00:02]} Nxc3 {[%emt 0:00:02]} 44. Nc6 {[%emt 0:00:01]} Ne4+ {[%emt 0:00:01]} 45. Kf4 {[%emt 0:00:01]} Nxd2 {[%emt 0:00:02]} 46. Nxe7+ {[%emt 0:00:02]} Kf6 {[%emt 0:00:01]} 47. Nc6 {[%emt 0:00:00]} Ke6 {[%emt 0:00:04]} 48. Nd4+ {[%emt 0:00:00]} Kd5 {[%emt 0:00:01]} 49. Nc2 {[%emt 0:00:19]} b5 {[%emt 0:00:00]} 50. b4 {[%emt 0:00:00]} 1-0

[Event "German-ch Blitz Women 2022"]
[Site "Magdeburg"]
[Date "2022.08.13"]
[Round "16.11"]
[White "Leveikina, Jevgenija"]
[Black "Schuster, Rebekka"]
[Result "1-0"]
[ECO "A40"]
[WhiteElo "2061"]
[BlackElo "1815"]
[Annotator "NA RC"]
[PlyCount "42"]
[EventDate "2022.08.10"]
[EventType "tourn"]
[EventCountry "GER"]
[SourceTitle "playchess.com"]
[Source "ChessBase"]
[SourceQuality "1"]
[TimeControl "180+2"]

1. d4 {[%emt 0:00:01]} e6 {[%emt 0:00:00]} 2. Nf3 {[%emt 0:00:01]} f5 {[%emt 0:00:04]} 3. Bg5 {[%emt 0:00:01]} Nf6 {[%emt 0:00:03]} 4. e3 {[%emt 0:00:02]} Be7 {[%emt 0:00:01]} 5. c3 {[%emt 0:00:02]} O-O {[%emt 0:00:08]} 6. Nbd2 {[%emt 0:00:01]} d6 {[%emt 0:00:04]} 7. Bd3 {[%emt 0:00:05]} Nc6 {[%emt 0:00:07]} 8. Qc2 {[%emt 0:00:03]} h6 {[%emt 0:00:51]} 9. Bh4 {[%emt 0:00:12]} g5 {[%emt 0:00:07]} 10. Bg3 {[%emt 0:00:01]} Qe8 {[%emt 0:00:32]} 11. O-O-O {[%emt 0:00:07]} Nh5 {[%emt 0:00:28]} 12. h4 {[%emt 0:00:10]} g4 {[%emt 0:00:04]} 13. Ng1 {[%emt 0:00:04]} Nxg3 {[%emt 0:00:24]} 14. fxg3 {[%emt 0:00:01]} e5 {[%emt 0:00:00]} 15. Bc4+ {[%emt 0:00:11]} Kh8 {[%emt 0:00:06]} 16. Ne2 {[%emt 0:00:03]} Bf6 {[%emt 0:00:05]} 17. d5 {[%emt 0:00:16]} Na5 {[%emt 0:00:05]} 18. e4 {[%emt 0:00:08]} Nxc4 {[%emt 0:00:04]} 19. Nxc4 {[%emt 0:00:03]} Bg7 {[%emt 0:00:06]} 20. Rhf1 {[%emt 0:00:06]} Qg6 {[%emt 0:00:08]} 21. Ne3 {[%emt 0:00:08]} fxe4 1-0

[Event "German-ch Blitz Women 2022"]
[Site "Magdeburg"]
[Date "2022.08.13"]
[Round "16.12"]
[White "Heil, Marina"]
[Black "Fock, Sana"]
[Result "1/2-1/2"]
[ECO "A22"]
[WhiteElo "1926"]
[BlackElo "1807"]
[Annotator "TA"]
[PlyCount "60"]
[EventDate "2022.08.10"]
[EventType "tourn"]
[EventCountry "GER"]
[SourceTitle "playchess.com"]
[Source "ChessBase"]
[SourceQuality "1"]
[TimeControl "180+2"]

{[%evp 17,60,0,9,0,0,0,0,0,48,21,24,11,33,18,64,56,50,52,72,33,29,36,18,-46,56,0,0,-6,9,0,41,35,51,-65,-57,-796,-769,-763,-426,-412,28,-2599,-2507,-29984,-29983]} 1. c4 {[%emt 0:00:01]} e5 {[%emt 0:00:01]} 2. Nc3 {[%emt 0:00:01]} Nf6 {[%emt 0:00:01]} 3. g3 {[%emt 0:00:01]} d5 {[%emt 0:00:00]} 4. cxd5 {[%emt 0:00:03]} Nxd5 {[%emt 0:00:02]} 5. Bg2 {[%emt 0:00:01]} Nb6 {[%emt 0:00:01]} 6. Nf3 {[%emt 0:00:07]} Nc6 {[%emt 0:00:02]} 7. d3 {[%emt 0:00:03]} Be7 {[%emt 0:00:02]} 8. O-O {[%emt 0:00:03]} O-O {[%emt 0:00:02]} 9. a3 {[%emt 0:00:04]} a5 {[%emt 0:00:09]} 10. b3 {[%emt 0:00:18] A29: English Opening: Four Knights Variation with 4 g3.} Be6 {[%emt 0:00:05]} 11. Bb2 {[%emt 0:00:03]} f6 {[%emt 0:00:04]} 12. Qc2 {[%emt 0:00:13] The position is equal.} Nd5 {[%emt 0:00:26]} (12... Qd7 $11) 13. Ne4 {[%emt 0:00:17]} Bf7 {[%emt 0:00:31] [#]} 14. Rfd1 $146 {[%emt 0:00:02]} ({Predecessor:} 14. Nc5 Bxc5 15. Qxc5 Qd6 16. Rac1 Ra6 17. Nd2 Rb6 18. Rc2 Qxc5 19. Rxc5 Nde7 20. Rb1 {1-0 (28) Vrtiakova,A (2002)-Cibikova,S (1827) Liptovsky Mikulas 2018}) 14... Kh8 {[%emt 0:00:14]} 15. d4 {[%emt 0:00:13][%cal Rd4e5]} exd4 {[%emt 0:00:08]} (15... f5 $11) 16. Nxd4 $14 Nxd4 {[%emt 0:00:10]} 17. Rxd4 {[%emt 0:00:09] aiming for Nc3.} Qc8 {[%emt 0:00:11]} 18. Rc1 {[%emt 0:00:08]} c6 {[%emt 0:00:03]} 19. Nd2 {[%emt 0:00:12]} Bg6 {[%emt 0:00:13]} 20. Qc4 {[%emt 0:00:21]} (20. e4 $11) 20... Rd8 {[%emt 0:00:09]} (20... Nc7 $1 $15) 21. e3 {[%emt 0:00:16]} (21. Bxd5 $14 cxd5 22. Rxd5) 21... Nb6 $11 {[%emt 0:00:10]} 22. Qe2 {[%emt 0:00:08]} Rxd4 {[%emt 0:00:10]} 23. Bxd4 {[%emt 0:00:01]} Bxa3 {[%emt 0:00:06]} 24. Ra1 {[%emt 0:00:06]} c5 {[%emt 0:00:02]} 25. Rxa3 {[%emt 0:00:09]} (25. Bxf6 $1 $14 Bb4 26. Bb2) 25... cxd4 $15 {[%emt 0:00:01]} 26. exd4 $2 {[%emt 0:00:01][%mdl 8192]} (26. Ra2 $15) 26... Qc1+ $19 {[%emt 0:00:04]} 27. Bf1 {[%emt 0:00:04]} h6 {[%emt 0:00:02]} 28. Ra2 {[%emt 0:00:08] [#]} a4 $2 {[%emt 0:00:04]} (28... Nd5 $1 $19 {[%cal Rd5c3]} 29. Ne4 Nb4) 29. Qc4 {[%emt 0:00:09][%mdl 8192]} Nxc4 {[%emt 0:00:03]} 30. Nxc4 {[%emt 0:00:05]} Bd3 {[%emt 0:00:06][%mdl 32768] Weighted Error Value: White=1.18/Black=0.85. An unexpected result.} 1/2-1/2

[Event "German-ch Blitz Women 2022"]
[Site "Magdeburg"]
[Date "2022.08.13"]
[Round "17.1"]
[White "Fock, Sana"]
[Black "Paehtz, Elisabeth"]
[Result "0-1"]
[ECO "B23"]
[WhiteElo "1807"]
[BlackElo "2484"]
[Annotator "TA"]
[PlyCount "96"]
[EventDate "2022.08.10"]
[EventType "tourn"]
[EventCountry "GER"]
[SourceTitle "playchess.com"]
[Source "ChessBase"]
[SourceQuality "1"]
[TimeControl "180+2"]

{[%evp 12,96,-5,-14,-8,-38,69,75,69,74,85,83,104,40,84,89,34,20,17,21,19,19,27,22,20,12,16,12,14,16,31,-9,47,14,101,32,25,-26,-14,-14,-9,-34,0,0,0,0,-2,-22,-15,-54,-20,-28,-27,-39,-30,-31,-22,-209,-220,-219,-206,-267,-277,-664,-669,-639,-656,-638,-635,-844,-839,-818,-741,-917,-895,-931,-911,-890,-871,-1153,-1142,-1356,-1337,-1297,-1144,-1077,-1008]} 1. e4 {[%emt 0:00:01]} c5 {[%emt 0:00:00]} 2. Nc3 {[%emt 0:00:01]} Nc6 {[%emt 0:00:01]} 3. f4 {[%emt 0:00:02]} g6 {[%emt 0:00:01]} 4. Nf3 {[%emt 0:00:01]} Bg7 {[%emt 0:00:01]} 5. Bb5 {[%emt 0:00:01]} Nd4 {[%emt 0:00:05]} 6. O-O {[%emt 0:00:02]} a6 {[%emt 0:00:03]} 7. Bd3 {[%emt 0:00:10]} e6 {[%emt 0:00:04] B23: Closed Sicilian: Lines without g3.} 8. e5 {[%emt 0:00:04] The main line 8.e5 scores better than 8.Nxd4.} d5 {[%emt 0:00:15] Prevents Ne4.} (8... f5 $15) 9. Nxd4 $14 {[%emt 0:00:06]} cxd4 {[%emt 0:00:01] White is better.} 10. Ne2 {[%emt 0:00:03]} Qb6 {[%emt 0:00:00]} 11. Qe1 {[%emt 0:00:22] [#]} f6 $146 {[%emt 0:00:01]} ({Predecessor:} 11... Ne7 12. b3 Nc6 13. Bb2 O-O 14. Qg3 Bd7 15. a3 Rac8 16. h4 Kh8 17. h5 gxh5 {0-1 (58) Nikolovski,N (2454)-Maghsoodloo,P (2676) Europe Echecs INT 2021}) 12. Qf2 {[%emt 0:00:28]} ({White should play} 12. b3 $16) 12... fxe5 {[%emt 0:00:06]} 13. fxe5 {[%emt 0:00:03] aiming for Qf7+.} Nh6 {[%emt 0:00:01] Inhibits Qf7+.} 14. Qxd4 {[%emt 0:00:50]} ({Much weaker is} 14. Nxd4 Bxe5 15. c3 Bxh2+ $1 16. Kh1 Be5 $15) (14. b3 {keeps more tension.} Bxe5 15. Ba3 Bxh2+ 16. Kh1) 14... Qxd4+ {[%emt 0:00:03]} 15. Nxd4 {[%emt 0:00:02]} Bxe5 {[%emt 0:00:03]} 16. Nf3 {[%emt 0:00:10]} Bg7 {[%emt 0:00:09]} 17. Re1 {[%emt 0:00:14] Prevents e5.} O-O {[%emt 0:00:09]} 18. c3 {[%emt 0:00:05]} Nf7 {[%emt 0:00:14]} 19. Bc2 {[%emt 0:00:03]} e5 {[%emt 0:00:02]} 20. d3 {[%emt 0:00:08]} Bf5 {[%emt 0:00:13]} 21. Ng5 {[%emt 0:00:07]} Nh6 {[%emt 0:00:52]} ({Better is} 21... Rac8 $11) 22. h3 {[%emt 0:00:06]} (22. Bb3 $5 {[%cal Rb3d5]}) 22... Rad8 {[%emt 0:00:04] [#]} (22... Nf7 $11) 23. Nf3 {[%emt 0:00:04]} (23. g4 $1 $16 {[%cal Rg4f5]} Bc8 24. Bb3) 23... Nf7 {[%emt 0:00:05]} 24. Bg5 {[%emt 0:00:05]} (24. Be3 $142) 24... Nxg5 $11 {[%emt 0:00:03]} 25. Nxg5 {[%emt 0:00:02]} Rfe8 {[%emt 0:00:22]} 26. Rad1 {[%emt 0:00:04]} h6 {[%emt 0:00:02]} (26... Bh6 $5 {[%cal Rh6g5]} 27. Nf3 Bf4 $15) 27. Nf3 {[%emt 0:00:04]} g5 {[%emt 0:00:02]} 28. Bb3 {[%emt 0:00:12]} (28. g4 $5 {[%cal Rg4f5]} Bd7 29. Re2 $11) 28... Kh7 {[%emt 0:00:02]} 29. Bc2 {[%emt 0:00:01]} Bg6 {[%emt 0:00:02]} 30. Kh2 {[%emt 0:00:03]} Bf6 {[%emt 0:00:04]} 31. g4 {[%emt 0:00:03]} Kg7 {[%emt 0:00:01]} 32. Kg3 {[%emt 0:00:02]} Re7 {[%emt 0:00:04]} 33. Rd2 {[%emt 0:00:01]} Rde8 {[%emt 0:00:09]} 34. c4 $2 {[%emt 0:00:02] This move loses the game for White.} (34. h4 $11) 34... e4 $19 {[%emt 0:00:02]} 35. dxe4 {[%emt 0:00:03]} dxe4 {[%emt 0:00:01]} 36. Ng1 {[%emt 0:00:05]} Bxb2 {[%emt 0:00:05]} 37. Bb3 $2 {[%emt 0:00:05]} (37. Rdd1) 37... Bc3 {[%emt 0:00:02] Black is clearly winning.} 38. Rde2 {[%emt 0:00:03]} Bxe1+ {[%emt 0:00:02]} 39. Rxe1 {[%emt 0:00:01]} Rd8 {[%emt 0:00:01] Threatens to win with ...Rd3+.} 40. Kf2 {[%emt 0:00:03]} Rd2+ {[%emt 0:00:01]} 41. Re2 {[%emt 0:00:02]} Rxe2+ {[%emt 0:00:02]} 42. Kxe2 {[%emt 0:00:01][%mdl 4096] Endgame KRB-KBN} Rd7 {[%emt 0:00:01]} 43. Ke3 {[%emt 0:00:05]} Rd3+ {[%emt 0:00:01]} 44. Ke2 {[%emt 0:00:01]} Kf6 {[%emt 0:00:01]} 45. Bc2 {[%emt 0:00:03]} Rc3 {[%emt 0:00:02][%csl LRc2,LRc4]} 46. Bb3 {[%emt 0:00:01]} Ke5 {[%emt 0:00:01] Strongly threatening ...Bf7.} 47. Kd2 {[%emt 0:00:03]} Rd3+ {[%emt 0:00:01]} 48. Kc2 {[%emt 0:00:04]} Rg3 {[%emt 0:00:03] Weighted Error Value: White=0.54/Black=0.19 (very precise)} 0-1